[Event "*** Titled Tuesday Blitz"]
[Site "Chess.com"]
[Date "2020.05.12"]
[Round "4"]
[White "MPGM"]
[Black "TenisMaster"]
[Result "1/2-1/2"]
[WhiteElo "2536"]
[BlackElo "2855"]
[TimeControl "180+1"]
[EndTime "10:39:35 PDT"]
[Termination "Game drawn - insufficient material"]

1. d4 {[%clk 0:03:00.8]} 1... Nf6 {[%clk 0:02:57.5]} 2. Nf3 {[%clk 0:02:57.9]}
2... d5 {[%clk 0:02:56.6]} 3. Bg5 {[%clk 0:02:56.8]} 3... Bf5 {[%clk 0:02:41.5]}
4. c4 {[%clk 0:02:50.5]} 4... e6 {[%clk 0:02:40.5]} 5. Nc3 {[%clk 0:02:39.8]}
5... c6 {[%clk 0:02:40.1]} 6. Qb3 {[%clk 0:02:36.1]} 6... Qb6 {[%clk 0:02:38.2]}
7. c5 {[%clk 0:02:21]} 7... Qc7 {[%clk 0:02:38.1]} 8. Bxf6 {[%clk 0:02:08.1]}
8... gxf6 {[%clk 0:02:37.7]} 9. Rc1 {[%clk 0:02:08.6]} 9... Nd7 {[%clk 0:02:33]}
10. e3 {[%clk 0:02:02.7]} 10... Bg4 {[%clk 0:02:16.4]} 11. Be2 {[%clk
0:02:00.9]} 11... f5 {[%clk 0:02:15.8]} 12. Qc2 {[%clk 0:01:57.3]} 12... Be7
{[%clk 0:02:13.1]} 13. g3 {[%clk 0:01:52.4]} 13... Bxf3 {[%clk 0:02:10.3]} 14.
Bxf3 {[%clk 0:01:52.2]} 14... h5 {[%clk 0:02:10.7]} 15. h4 {[%clk 0:01:50.4]}
15... Nf6 {[%clk 0:02:10.8]} 16. b4 {[%clk 0:01:47.1]} 16... Kf8 {[%clk
0:02:06.5]} 17. Ne2 {[%clk 0:01:45.7]} 17... b6 {[%clk 0:01:53.4]} 18. Nf4
{[%clk 0:01:40.7]} 18... bxc5 {[%clk 0:01:53]} 19. bxc5 {[%clk 0:01:39.9]} 19...
Rb8 {[%clk 0:01:51.7]} 20. O-O {[%clk 0:01:35.2]} 20... Kg7 {[%clk 0:01:50.8]}
21. Rb1 {[%clk 0:01:32]} 21... Kh6 {[%clk 0:01:47.6]} 22. Qe2 {[%clk 0:01:29.5]}
22... Ng4 {[%clk 0:01:47.1]} 23. Qa6 {[%clk 0:01:25.9]} 23... Bf6 {[%clk
0:01:42.7]} 24. Rb3 {[%clk 0:01:13.2]} 24... Rxb3 {[%clk 0:01:25.8]} 25. axb3
{[%clk 0:01:14.1]} 25... Rb8 {[%clk 0:01:26.1]} 26. Ra1 {[%clk 0:01:11.1]} 26...
Rb7 {[%clk 0:01:25.7]} 27. b4 {[%clk 0:01:01.5]} 27... Bg7 {[%clk 0:01:05.2]}
28. b5 {[%clk 0:00:52.5]} 28... Rxb5 {[%clk 0:01:02.8]} 29. Qxa7 {[%clk
0:00:51.3]} 29... Rb1+ {[%clk 0:01:00.7]} 30. Kg2 {[%clk 0:00:49.4]} 30... Qxa7
{[%clk 0:00:45.7]} 31. Rxa7 {[%clk 0:00:48.7]} 31... e5 {[%clk 0:00:46.6]} 32.
dxe5 {[%clk 0:00:42.3]} 32... Nxe5 {[%clk 0:00:45.3]} 33. Bxh5 {[%clk
0:00:35.6]} 33... Rc1 {[%clk 0:00:39.9]} 34. Bxf7 {[%clk 0:00:33.4]} 34... Rxc5
{[%clk 0:00:39.2]} 35. Be6 {[%clk 0:00:28.5]} 35... Nc4 {[%clk 0:00:26.4]} 36.
Bxf5 {[%clk 0:00:24.5]} 36... d4 {[%clk 0:00:26.5]} 37. g4 {[%clk 0:00:20.7]}
37... Rxf5 {[%clk 0:00:18.6]} 38. g5+ {[%clk 0:00:14.3]} 38... Kh7 {[%clk
0:00:15.3]} 39. Ne6 {[%clk 0:00:11.3]} 39... dxe3 {[%clk 0:00:13.9]} 40. Rxg7+
{[%clk 0:00:11.3]} 40... Kh8 {[%clk 0:00:14]} 41. fxe3 {[%clk 0:00:05.2]} 41...
Nxe3+ {[%clk 0:00:14.9]} 42. Kg3 {[%clk 0:00:05]} 42... Re5 {[%clk 0:00:15.1]}
43. Rg6 {[%clk 0:00:02.9]} 43... Nd5 {[%clk 0:00:08]} 44. h5 {[%clk 0:00:02.6]}
44... c5 {[%clk 0:00:04.6]} 45. Rh6+ {[%clk 0:00:02.7]} 45... Kg8 {[%clk
0:00:04.5]} 46. Rg6+ {[%clk 0:00:03.2]} 46... Kh8 {[%clk 0:00:04.6]} 47. Nf4
{[%clk 0:00:02.8]} 47... Re3+ {[%clk 0:00:03.2]} 48. Kf2 {[%clk 0:00:03.3]}
48... Nxf4 {[%clk 0:00:03]} 49. Kxe3 {[%clk 0:00:03.6]} 49... Nxg6 {[%clk
0:00:03.1]} 50. hxg6 {[%clk 0:00:04.5]} 50... Kg7 {[%clk 0:00:03.8]} 51. Kd3
{[%clk 0:00:04.7]} 51... Kxg6 {[%clk 0:00:04.6]} 52. Kc4 {[%clk 0:00:05.6]}
52... Kxg5 {[%clk 0:00:05.2]} 53. Kxc5 {[%clk 0:00:06.5]} 1/2-1/2

[Event "*** Titled Tuesday Blitz"]
[Site "Chess.com"]
[Date "2020.05.12"]
[Round "4"]
[White "GoValya"]
[Black "Chesstrainer1"]
[Result "0-1"]
[WhiteElo "2172"]
[BlackElo "2408"]
[TimeControl "180+1"]
[EndTime "10:39:36 PDT"]
[Termination "Chesstrainer1 won by resignation"]

1. d4 {[%clk 0:03:00.9]} 1... Nf6 {[%clk 0:02:59.7]} 2. c4 {[%clk 0:02:57.8]}
2... g6 {[%clk 0:02:59.9]} 3. g3 {[%clk 0:02:57.7]} 3... Bg7 {[%clk 0:02:59.4]}
4. Bg2 {[%clk 0:02:58]} 4... O-O {[%clk 0:02:59.9]} 5. Nc3 {[%clk 0:02:57.8]}
5... d6 {[%clk 0:02:56.5]} 6. Nf3 {[%clk 0:02:57.3]} 6... Nbd7 {[%clk
0:02:56.6]} 7. O-O {[%clk 0:02:56.9]} 7... e5 {[%clk 0:02:57]} 8. e4 {[%clk
0:02:57.2]} 8... Re8 {[%clk 0:02:54.3]} 9. Re1 {[%clk 0:02:54]} 9... exd4 {[%clk
0:02:51.5]} 10. Nxd4 {[%clk 0:02:53.4]} 10... Nc5 {[%clk 0:02:52.4]} 11. h3
{[%clk 0:02:41.9]} 11... Bd7 {[%clk 0:02:50.2]} 12. Rb1 {[%clk 0:02:39]} 12...
h6 {[%clk 0:02:49.5]} 13. b4 {[%clk 0:02:35.9]} 13... Ne6 {[%clk 0:02:49.3]} 14.
Nc2 {[%clk 0:02:25.9]} 14... Ng5 {[%clk 0:02:26.3]} 15. Bxg5 {[%clk 0:02:06.1]}
15... hxg5 {[%clk 0:02:27.2]} 16. Qd2 {[%clk 0:02:01.2]} 16... g4 {[%clk
0:02:23.2]} 17. h4 {[%clk 0:02:01.5]} 17... Be6 {[%clk 0:01:58.2]} 18. Nd5
{[%clk 0:01:48.9]} 18... c6 {[%clk 0:01:55.6]} 19. Nde3 {[%clk 0:01:37.4]} 19...
Qc7 {[%clk 0:01:44.7]} 20. Nd4 {[%clk 0:01:35.7]} 20... Rad8 {[%clk 0:01:32.8]}
21. Rec1 {[%clk 0:01:33.1]} 21... Bc8 {[%clk 0:01:30.5]} 22. Qd3 {[%clk
0:00:54.5]} 22... Qe7 {[%clk 0:01:07.2]} 23. Re1 {[%clk 0:00:44]} 23... Nxe4
{[%clk 0:00:49.8]} 24. Nxg4 {[%clk 0:00:42]} 24... f5 {[%clk 0:00:35.5]} 25. Ne3
{[%clk 0:00:34]} 25... Qf6 {[%clk 0:00:32.2]} 26. Nf3 {[%clk 0:00:29.5]} 26...
Qc3 {[%clk 0:00:24.1]} 27. Qxc3 {[%clk 0:00:27]} 27... Nxc3 {[%clk 0:00:24]} 28.
Rb3 {[%clk 0:00:26.2]} 28... d5 {[%clk 0:00:22.8]} 29. cxd5 {[%clk 0:00:23.2]}
29... cxd5 {[%clk 0:00:23.7]} 30. Ng5 {[%clk 0:00:20.3]} 30... d4 {[%clk
0:00:23.1]} 31. Rxc3 {[%clk 0:00:19.4]} 31... dxc3 {[%clk 0:00:22.7]} 32. Rc1
{[%clk 0:00:19.2]} 32... Bf6 {[%clk 0:00:16.3]} 33. Bd5+ {[%clk 0:00:18.6]}
33... Kg7 {[%clk 0:00:16.5]} 34. Nf3 {[%clk 0:00:17.7]} 34... Rxe3 {[%clk
0:00:15.8]} 35. fxe3 {[%clk 0:00:17.9]} 35... Rxd5 {[%clk 0:00:16.6]} 36. Kf2
{[%clk 0:00:17.6]} 36... Be6 {[%clk 0:00:15.1]} 37. Rc2 {[%clk 0:00:17.1]} 37...
Rd3 {[%clk 0:00:14.6]} 38. a3 {[%clk 0:00:16.9]} 38... Bb3 {[%clk 0:00:14.1]}
39. Rc1 {[%clk 0:00:15.9]} 39... c2 {[%clk 0:00:14.4]} 40. Ke2 {[%clk
0:00:15.4]} 40... Rc3 {[%clk 0:00:12.3]} 41. Kd2 {[%clk 0:00:14.3]} 41... Rc7
{[%clk 0:00:12.8]} 42. Nd4 {[%clk 0:00:14.1]} 42... Bxd4 {[%clk 0:00:12.8]} 43.
exd4 {[%clk 0:00:14.4]} 43... Kf6 {[%clk 0:00:13.2]} 44. Kd3 {[%clk 0:00:14.3]}
44... Ke6 {[%clk 0:00:13.2]} 45. Re1+ {[%clk 0:00:14.2]} 45... Kd6 {[%clk
0:00:13.4]} 46. Rc1 {[%clk 0:00:14.8]} 46... Kd5 {[%clk 0:00:13.7]} 47. Kd2
{[%clk 0:00:13.7]} 47... Rc4 {[%clk 0:00:13.6]} 48. Kd3 {[%clk 0:00:12.6]} 48...
b5 {[%clk 0:00:13]} 49. Kd2 {[%clk 0:00:10.7]} 49... Kxd4 {[%clk 0:00:13.4]} 50.
Ke2 {[%clk 0:00:10.8]} 50... Kc3 {[%clk 0:00:13]} 51. Ke3 {[%clk 0:00:10.8]}
51... Kb2 {[%clk 0:00:12.9]} 52. Re1 {[%clk 0:00:10.8]} 52... c1=Q+ {[%clk
0:00:13]} 53. Rxc1 {[%clk 0:00:10.8]} 53... Kxc1 {[%clk 0:00:13.5]} 54. Kf3
{[%clk 0:00:10.4]} 54... Bd1+ {[%clk 0:00:12.9]} 0-1

[Event "*** Titled Tuesday Blitz"]
[Site "Chess.com"]
[Date "2020.05.12"]
[Round "4"]
[White "Gentlejimmy7"]
[Black "Anuar_Is"]
[Result "0-1"]
[WhiteElo "2575"]
[BlackElo "2782"]
[TimeControl "180+1"]
[EndTime "10:39:37 PDT"]
[Termination "Anuar_Is won by checkmate"]

1. d4 {[%clk 0:02:49.7]} 1... Nf6 {[%clk 0:02:59.7]} 2. g3 {[%clk 0:02:49.5]}
2... g6 {[%clk 0:02:59.8]} 3. Bg2 {[%clk 0:02:42.8]} 3... Bg7 {[%clk 0:03:00]}
4. Nf3 {[%clk 0:02:43.4]} 4... O-O {[%clk 0:03:00.2]} 5. O-O {[%clk 0:02:43.5]}
5... d6 {[%clk 0:03:00.7]} 6. Nc3 {[%clk 0:02:41.1]} 6... c6 {[%clk 0:02:50.8]}
7. e4 {[%clk 0:02:37.2]} 7... Qc7 {[%clk 0:02:51]} 8. a4 {[%clk 0:02:37.6]} 8...
Bg4 {[%clk 0:02:48.1]} 9. a5 {[%clk 0:02:34.3]} 9... Nbd7 {[%clk 0:02:46.6]} 10.
Be3 {[%clk 0:02:32.2]} 10... e6 {[%clk 0:02:41.1]} 11. Qd3 {[%clk 0:02:28.4]}
11... b5 {[%clk 0:02:36.8]} 12. axb6 {[%clk 0:02:27.9]} 12... axb6 {[%clk
0:02:37.7]} 13. Nd2 {[%clk 0:02:20]} 13... e5 {[%clk 0:02:32.6]} 14. d5 {[%clk
0:02:00]} 14... Nc5 {[%clk 0:02:27.6]} 15. Bxc5 {[%clk 0:01:57.6]} 15... bxc5
{[%clk 0:02:24.9]} 16. dxc6 {[%clk 0:01:53.7]} 16... Qxc6 {[%clk 0:02:24.6]} 17.
Nc4 {[%clk 0:01:52]} 17... Rad8 {[%clk 0:02:14.9]} 18. Ne3 {[%clk 0:01:49.7]}
18... Be6 {[%clk 0:02:13.9]} 19. Rfd1 {[%clk 0:01:37.6]} 19... Rb8 {[%clk
0:01:57.6]} 20. b3 {[%clk 0:01:28.4]} 20... Rfd8 {[%clk 0:01:53.8]} 21. Ra6
{[%clk 0:01:25.8]} 21... Rb6 {[%clk 0:01:51.2]} 22. Rxb6 {[%clk 0:01:16.7]}
22... Qxb6 {[%clk 0:01:52.1]} 23. Ncd5 {[%clk 0:01:14.2]} 23... Qb7 {[%clk
0:01:47.1]} 24. Nxf6+ {[%clk 0:01:11.2]} 24... Bxf6 {[%clk 0:01:48]} 25. Nd5
{[%clk 0:01:11.7]} 25... Bxd5 {[%clk 0:01:43.1]} 26. Qxd5 {[%clk 0:01:11.8]}
26... Qxd5 {[%clk 0:01:43.2]} 27. Rxd5 {[%clk 0:01:12.6]} 27... Be7 {[%clk
0:01:43.7]} 28. f4 {[%clk 0:01:08.7]} 28... f6 {[%clk 0:01:42.3]} 29. Rd1 {[%clk
0:00:31.3]} 29... Ra8 {[%clk 0:01:41.1]} 30. Bf1 {[%clk 0:00:24.6]} 30... Kf8
{[%clk 0:01:35.3]} 31. Kf2 {[%clk 0:00:23.9]} 31... Ra2 {[%clk 0:01:34.4]} 32.
Bd3 {[%clk 0:00:23.4]} 32... Bd8 {[%clk 0:01:33.5]} 33. Kf3 {[%clk 0:00:23]}
33... Ke7 {[%clk 0:01:32]} 34. h4 {[%clk 0:00:22.7]} 34... Kf8 {[%clk
0:01:05.5]} 35. Rh1 {[%clk 0:00:22.5]} 35... Kg7 {[%clk 0:01:04]} 36. h5 {[%clk
0:00:22.8]} 36... gxh5 {[%clk 0:01:01.7]} 37. Rxh5 {[%clk 0:00:21.7]} 37... Ba5
{[%clk 0:00:58.7]} 38. Rh1 {[%clk 0:00:20.5]} 38... Bc3 {[%clk 0:00:58.5]} 39.
g4 {[%clk 0:00:19.2]} 39... Bd4 {[%clk 0:00:58]} 40. g5 {[%clk 0:00:19.2]} 40...
exf4 {[%clk 0:00:55.3]} 41. gxf6+ {[%clk 0:00:19.4]} 41... Bxf6 {[%clk
0:00:55.1]} 42. Kxf4 {[%clk 0:00:17.5]} 42... h6 {[%clk 0:00:54.2]} 43. Kf5
{[%clk 0:00:16.9]} 43... Ra1 {[%clk 0:00:43.9]} 44. Rxa1 {[%clk 0:00:16.5]}
44... Bxa1 {[%clk 0:00:44.8]} 45. Be2 {[%clk 0:00:16.9]} 45... Be5 {[%clk
0:00:44.9]} 46. Bh5 {[%clk 0:00:16.1]} 46... Kf8 {[%clk 0:00:44.4]} 47. Ke6
{[%clk 0:00:16]} 47... Bf4 {[%clk 0:00:42.8]} 48. c3 {[%clk 0:00:16]} 48... Be5
{[%clk 0:00:36.7]} 49. b4 {[%clk 0:00:13.6]} 49... Bxc3 {[%clk 0:00:36.8]} 50.
b5 {[%clk 0:00:13.8]} 50... Ba5 {[%clk 0:00:36]} 51. Kxd6 {[%clk 0:00:13.2]}
51... c4 {[%clk 0:00:36.5]} 52. e5 {[%clk 0:00:07.8]} 52... c3 {[%clk
0:00:35.8]} 53. e6 {[%clk 0:00:08.2]} 53... Bb4+ {[%clk 0:00:36]} 54. Kd7 {[%clk
0:00:06]} 54... c2 {[%clk 0:00:36.5]} 55. b6 {[%clk 0:00:05.5]} 55... c1=Q
{[%clk 0:00:36.8]} 56. b7 {[%clk 0:00:06.2]} 56... Qd2+ {[%clk 0:00:34.8]} 57.
Kc8 {[%clk 0:00:06.1]} 57... Qc3+ {[%clk 0:00:33.5]} 58. Kd8 {[%clk 0:00:06.1]}
58... Qd4+ {[%clk 0:00:33.1]} 59. Kc8 {[%clk 0:00:06.2]} 59... Qc5+ {[%clk
0:00:33.1]} 60. Kd8 {[%clk 0:00:06.2]} 60... Qb6+ {[%clk 0:00:32.9]} 61. Kc8
{[%clk 0:00:06.5]} 61... Bd6 {[%clk 0:00:32.6]} 62. b8=Q {[%clk 0:00:06]} 62...
Qxb8+ {[%clk 0:00:32.4]} 63. Kd7 {[%clk 0:00:06.9]} 63... Qc7# {[%clk
0:00:33.3]} 0-1

[Event "*** Titled Tuesday Blitz"]
[Site "Chess.com"]
[Date "2020.05.12"]
[Round "4"]
[White "BogdanDeac"]
[Black "SketchyMoves"]
[Result "1-0"]
[WhiteElo "2923"]
[BlackElo "2633"]
[TimeControl "180+1"]
[EndTime "10:39:38 PDT"]
[Termination "BogdanDeac won by checkmate"]

1. Nf3 {[%clk 0:03:00.9]} 1... b6 {[%clk 0:02:59]} 2. c4 {[%clk 0:02:59.5]} 2...
Bb7 {[%clk 0:02:58.3]} 3. d4 {[%clk 0:02:59.1]} 3... e6 {[%clk 0:02:56.6]} 4. a3
{[%clk 0:02:55.5]} 4... f5 {[%clk 0:02:56.2]} 5. g3 {[%clk 0:02:51.8]} 5... Nf6
{[%clk 0:02:53.9]} 6. Bg2 {[%clk 0:02:52.2]} 6... g6 {[%clk 0:02:49.5]} 7. O-O
{[%clk 0:02:51.6]} 7... Bg7 {[%clk 0:02:49.6]} 8. Nc3 {[%clk 0:02:51.8]} 8...
O-O {[%clk 0:02:48.4]} 9. d5 {[%clk 0:02:51.7]} 9... Qe7 {[%clk 0:02:45.4]} 10.
Nd4 {[%clk 0:02:48.7]} 10... c6 {[%clk 0:02:36]} 11. Nc2 {[%clk 0:02:26.4]}
11... e5 {[%clk 0:02:31.7]} 12. e4 {[%clk 0:02:24.4]} 12... fxe4 {[%clk
0:01:46.8]} 13. Nxe4 {[%clk 0:02:21.9]} 13... Nxe4 {[%clk 0:01:38.6]} 14. Bxe4
{[%clk 0:02:21.2]} 14... d6 {[%clk 0:01:30.2]} 15. h4 {[%clk 0:01:59.3]} 15...
Kh8 {[%clk 0:01:04]} 16. h5 {[%clk 0:01:55.3]} 16... cxd5 {[%clk 0:01:04.2]} 17.
Bxd5 {[%clk 0:01:52.7]} 17... Bxd5 {[%clk 0:01:01.7]} 18. Qxd5 {[%clk
0:01:51.4]} 18... Nd7 {[%clk 0:00:54.9]} 19. hxg6 {[%clk 0:01:51.4]} 19... hxg6
{[%clk 0:00:54.3]} 20. Kg2 {[%clk 0:01:50.3]} 20... Qf7 {[%clk 0:00:43.9]} 21.
Ne3 {[%clk 0:01:14]} 21... Qxd5+ {[%clk 0:00:30.7]} 22. Nxd5 {[%clk 0:01:13.7]}
22... Kg8 {[%clk 0:00:29.8]} 23. Be3 {[%clk 0:01:07.9]} 23... Kf7 {[%clk
0:00:25.7]} 24. Rfd1 {[%clk 0:01:06.7]} 24... Rac8 {[%clk 0:00:22.4]} 25. b3
{[%clk 0:01:04.4]} 25... Ke6 {[%clk 0:00:20.7]} 26. a4 {[%clk 0:01:02.1]} 26...
Nf6 {[%clk 0:00:17.1]} 27. a5 {[%clk 0:00:59.6]} 27... Nxd5 {[%clk 0:00:12.7]}
28. Rxd5 {[%clk 0:00:55]} 28... Rc6 {[%clk 0:00:09]} 29. axb6 {[%clk 0:00:52]}
29... axb6 {[%clk 0:00:09.9]} 30. Ra7 {[%clk 0:00:51.7]} 30... Bf6 {[%clk
0:00:08.5]} 31. Rb5 {[%clk 0:00:47]} 31... Rb8 {[%clk 0:00:05.5]} 32. Kf3 {[%clk
0:00:43.7]} 32... Bd8 {[%clk 0:00:03.6]} 33. Rg7 {[%clk 0:00:43.1]} 33... Kf6
{[%clk 0:00:01.9]} 34. Rh7 {[%clk 0:00:40]} 34... Ke6 {[%clk 0:00:01.9]} 35. Ke4
{[%clk 0:00:39.2]} 35... Be7 {[%clk 0:00:02.4]} 36. g4 {[%clk 0:00:34.2]} 36...
Bf6 {[%clk 0:00:02.5]} 37. g5 {[%clk 0:00:32.2]} 37... Bd8 {[%clk 0:00:01.9]}
38. Rg7 {[%clk 0:00:31.8]} 38... Rc7 {[%clk 0:00:01.3]} 39. Rxg6+ {[%clk
0:00:30.8]} 39... Kf7 {[%clk 0:00:01.3]} 40. Rxd6 {[%clk 0:00:30.4]} 40... Be7
{[%clk 0:00:01.9]} 41. Rdxb6 {[%clk 0:00:30]} 41... Rg8 {[%clk 0:00:02.1]} 42.
Kf5 {[%clk 0:00:28.5]} 42... Rd7 {[%clk 0:00:01.7]} 43. g6+ {[%clk 0:00:27.9]}
43... Kg7 {[%clk 0:00:01.5]} 44. Re6 {[%clk 0:00:27.5]} 44... Rf8+ {[%clk
0:00:01.9]} 45. Ke4 {[%clk 0:00:27.2]} 45... Bf6 {[%clk 0:00:02.2]} 46. Rbb6
{[%clk 0:00:22.9]} 46... Kxg6 {[%clk 0:00:02.7]} 47. c5 {[%clk 0:00:21.9]} 47...
Kg7 {[%clk 0:00:02.8]} 48. c6 {[%clk 0:00:21.4]} 48... Rc7 {[%clk 0:00:03]} 49.
Rb7 {[%clk 0:00:20.8]} 49... Rc8 {[%clk 0:00:03]} 50. Rxc7+ {[%clk 0:00:20.7]}
50... Rxc7 {[%clk 0:00:03.8]} 51. b4 {[%clk 0:00:21.3]} 51... Kf7 {[%clk
0:00:04.3]} 52. Kf5 {[%clk 0:00:21.4]} 52... Bg7 {[%clk 0:00:03.9]} 53. b5
{[%clk 0:00:21.6]} 53... Rc8 {[%clk 0:00:03.5]} 54. b6 {[%clk 0:00:21.8]} 54...
e4 {[%clk 0:00:03.2]} 55. b7 {[%clk 0:00:21.9]} 55... Rb8 {[%clk 0:00:03.2]} 56.
c7 {[%clk 0:00:21.8]} 56... Rxb7 {[%clk 0:00:04.1]} 57. c8=Q {[%clk 0:00:21.9]}
57... Rb5+ {[%clk 0:00:05]} 58. Kg4 {[%clk 0:00:21.7]} 58... Bf6 {[%clk
0:00:04.7]} 59. Qe8+ {[%clk 0:00:21.1]} 59... Kg7 {[%clk 0:00:04.8]} 60. Qxb5
{[%clk 0:00:21]} 60... Kg6 {[%clk 0:00:04.8]} 61. Qf5+ {[%clk 0:00:20.3]} 61...
Kg7 {[%clk 0:00:05]} 62. Qxf6+ {[%clk 0:00:20.3]} 62... Kh7 {[%clk 0:00:05.9]}
63. Re7+ {[%clk 0:00:19.8]} 63... Kg8 {[%clk 0:00:06.8]} 64. Qg7# {[%clk
0:00:19.8]} 1-0

[Event "*** Titled Tuesday Blitz"]
[Site "Chess.com"]
[Date "2020.05.12"]
[Round "4"]
[White "Gennady_Kozlov"]
[Black "sopo-tereladze"]
[Result "1-0"]
[WhiteElo "2598"]
[BlackElo "2390"]
[TimeControl "180+1"]
[EndTime "10:39:41 PDT"]
[Termination "Gennady_Kozlov won on time"]

1. b3 {[%clk 0:03:00.9]} 1... Nf6 {[%clk 0:02:57.2]} 2. Bb2 {[%clk 0:03:01.8]}
2... e6 {[%clk 0:02:56.6]} 3. e3 {[%clk 0:02:52.7]} 3... d5 {[%clk 0:02:52.9]}
4. f4 {[%clk 0:02:52.6]} 4... c5 {[%clk 0:02:51.3]} 5. Nf3 {[%clk 0:02:53]} 5...
Nc6 {[%clk 0:02:51.3]} 6. Be2 {[%clk 0:02:50.5]} 6... Be7 {[%clk 0:02:51.8]} 7.
O-O {[%clk 0:02:50.8]} 7... O-O {[%clk 0:02:52.3]} 8. Qe1 {[%clk 0:02:51.5]}
8... a6 {[%clk 0:02:48.6]} 9. a4 {[%clk 0:02:50.9]} 9... Nb4 {[%clk 0:02:43]}
10. Na3 {[%clk 0:02:49.9]} 10... Ne4 {[%clk 0:02:42.3]} 11. d3 {[%clk
0:02:48.9]} 11... Nd6 {[%clk 0:02:41.6]} 12. Ne5 {[%clk 0:02:46.5]} 12... f6
{[%clk 0:02:35.5]} 13. Nf3 {[%clk 0:02:45.5]} 13... Nf7 {[%clk 0:02:30.3]} 14.
Qg3 {[%clk 0:02:35.5]} 14... Bd7 {[%clk 0:02:22.7]} 15. Rae1 {[%clk 0:02:32.1]}
15... Kh8 {[%clk 0:02:17.3]} 16. Nh4 {[%clk 0:02:29.5]} 16... Rg8 {[%clk
0:02:11.8]} 17. Bh5 {[%clk 0:02:23.2]} 17... Nh6 {[%clk 0:02:09.7]} 18. Qh3
{[%clk 0:02:21.1]} 18... e5 {[%clk 0:02:04.7]} 19. f5 {[%clk 0:02:14.6]} 19...
d4 {[%clk 0:01:54.1]} 20. Qf3 {[%clk 0:02:06.7]} 20... b5 {[%clk 0:01:49.9]} 21.
axb5 {[%clk 0:02:01.5]} 21... axb5 {[%clk 0:01:50.8]} 22. e4 {[%clk 0:02:01.6]}
22... Rxa3 {[%clk 0:01:40.1]} 23. Bxa3 {[%clk 0:02:00.1]} 23... Nxc2 {[%clk
0:01:40.5]} 24. Bc1 {[%clk 0:01:57.7]} 24... Nxe1 {[%clk 0:01:38.4]} 25. Rxe1
{[%clk 0:01:58.6]} 25... c4 {[%clk 0:01:34.6]} 26. dxc4 {[%clk 0:01:49.3]} 26...
bxc4 {[%clk 0:01:32.9]} 27. bxc4 {[%clk 0:01:50.2]} 27... Qc7 {[%clk 0:01:27.8]}
28. Bxh6 {[%clk 0:01:44.9]} 28... gxh6 {[%clk 0:01:28.7]} 29. Bf7 {[%clk
0:01:45.1]} 29... Rg5 {[%clk 0:01:23.2]} 30. Ra1 {[%clk 0:01:37.2]} 30... Bc6
{[%clk 0:01:18.7]} 31. Qd3 {[%clk 0:01:32.3]} 31... Qb7 {[%clk 0:01:11.8]} 32.
Bd5 {[%clk 0:01:28.6]} 32... Bxd5 {[%clk 0:01:06.2]} 33. cxd5 {[%clk 0:01:28.6]}
33... Qb2 {[%clk 0:01:04.4]} 34. Rb1 {[%clk 0:01:25.3]} 34... Qa2 {[%clk
0:01:04]} 35. Rb8+ {[%clk 0:01:13.5]} 35... Rg8 {[%clk 0:00:56.9]} 36. Rxg8+
{[%clk 0:01:09.5]} 36... Kxg8 {[%clk 0:00:57.8]} 37. h3 {[%clk 0:01:08.9]} 37...
Qa1+ {[%clk 0:00:54.1]} 38. Kh2 {[%clk 0:01:07.7]} 38... Qc1 {[%clk 0:00:54.3]}
39. Nf3 {[%clk 0:01:06.6]} 39... h5 {[%clk 0:00:47.8]} 40. Nd2 {[%clk
0:01:03.8]} 40... Bb4 {[%clk 0:00:39]} 41. Nc4 {[%clk 0:00:52]} 41... Qf4+
{[%clk 0:00:34.2]} 42. Qg3+ {[%clk 0:00:51.2]} 42... Qxg3+ {[%clk 0:00:33.8]}
43. Kxg3 {[%clk 0:00:51.4]} 43... Be1+ {[%clk 0:00:34.7]} 44. Kf3 {[%clk
0:00:51.5]} 44... Kf7 {[%clk 0:00:32.6]} 45. Ke2 {[%clk 0:00:51.5]} 45... Bc3
{[%clk 0:00:30.4]} 46. Kd3 {[%clk 0:00:52.4]} 46... Be1 {[%clk 0:00:26.5]} 47.
Nb6 {[%clk 0:00:46]} 47... Ke7 {[%clk 0:00:26.1]} 48. Kc4 {[%clk 0:00:45]} 48...
Kd6 {[%clk 0:00:22.8]} 49. Na4 {[%clk 0:00:38.3]} 49... Bd2 {[%clk 0:00:19.2]}
50. Nc5 {[%clk 0:00:36.6]} 50... h4 {[%clk 0:00:18.3]} 51. Ne6 {[%clk
0:00:35.1]} 51... Bh6 {[%clk 0:00:14.1]} 52. Nd8 {[%clk 0:00:34.8]} 52... Kd7
{[%clk 0:00:08.7]} 53. Nb7 {[%clk 0:00:30.6]} 53... Kc7 {[%clk 0:00:08.1]} 54.
Nc5 {[%clk 0:00:29.5]} 54... Kd6 {[%clk 0:00:07.3]} 55. Nd3 {[%clk 0:00:28.3]}
55... Be3 {[%clk 0:00:05.5]} 56. Kb5 {[%clk 0:00:28.2]} 56... Bd2 {[%clk
0:00:02]} 57. Kb6 {[%clk 0:00:27.7]} 57... Be3 {[%clk 0:00:02.6]} 58. Kb7 {[%clk
0:00:27.6]} 1-0